{"text_format":"1","workbook":"xlsx","n_sheets":6,"sheets":["Ark1","Ark2","Ark3","Ark4","Ark5","Ark6"],"not_rendered":{"charts":0,"images":0,"macros":1,"external_links":0,"defined_names":0,"comments":0,"pivot_tables":0},"unopened":[],"bounds":{"document_bytes":16777216,"sheet_cells":100000,"rows_first":2000,"rows_last":500,"rows_between":2000,"halvings":0,"cell_chars":16384,"cell_head_chars":4096},"cells_cut":0,"cells_raw":0,"read":"whole","date_system":"1900"}

{"sheet":"Ark1","index":0,"n_rows":122,"n_cols":79,"rows_kept":122,"cut":false,"hidden":false,"merged":[[29,16,29,30],[28,0,28,13],[19,0,19,13],[13,0,13,13],[24,16,24,30],[25,16,25,30],[26,16,26,30],[27,16,27,30],[28,16,28,30]]}
[]
["Nøgle til de danske Bi-lignende Svirrefluer. (Diptera: Syrphidae)",null,null,null,null,null,null,null,null,null,null,null,null,null,null,null,null,null,null,null,null,null,null,null,null,null,null,null,null,null,null,null,null,null,null,null,null,null,null,null,null," ",null,null," "]
[]
[null,null,null,null,null,null,null,null,null,null,null,null,null,null,null,null,null,null,null,{"$f":"IF(AQ9=1,VLOOKUP(AQ8,BK11:BL23,2,FALSE),\"      Syrphidae sp.\")","v":"Mallota cimbiciformis"}]
[]
["Honningbi-lignende, behåring ikke dækkende ?",null,null,null,null,null,null,null,null,null,null,null,null,null,null,null,null,null,null,{"$f":"IF(AQ9=1,VLOOKUP(AQ8,BA26:BB38,2,FALSE),\"          Svirreflue\")","v":"       Uld-Svirreflue"},null,null,null,null,null,null,null,null,null,null,null,null,null,null,null," ","Afkrydsede felter",null,null,null,null,null,{"$f":"SUM(AR6+AT6+AV6+AY6+BA6+BC6+BE6+BG6)","v":7},{"$f":"IF(AS6=0,0,5)","v":5},{"$f":"SUM(AR7:AS7)","v":1},{"$f":"IF(AU6=0,0,1)","v":0},{"$f":"SUM(AT7:AU7)","v":0},{"$f":"IF(AW6=0,0,1)","v":1},{"$f":"SUM(AV7:AX7)","v":1},null,{"$f":"IF(AZ6=0,0,1)","v":0},{"$f":"SUM(AY7:AZ7)","v":0},{"$f":"IF(BB6=0,0,1)","v":0},{"$f":"SUM(BA7:BB7)","v":0},{"$f":"IF(BD6=0,0,1)","v":1},{"$f":"SUM(BC7:BD7)","v":1},{"$f":"IF(BF6=0,0,1)","v":0},{"$f":"SUM(BE7:BF7)","v":0},{"$f":"IF(BH6=0,0,1)","v":0},{"$f":"SUM(BG7:BJ7)","v":0},null,null,null,null,null,null,null,null,null,null,null,null,null,null,null,null,{"$f":"IF(CA6,\"x\",\" \")","v":"x"},null,true]
["Humlebi-lignende, tæt dækkende behåring ?",null,null,null,null,null,null,null,null,null,null,null,null,null,null,null,null,{"$f":"IF(AQ9=1,\"      Fluen er nu bestemt.  Se ovenfor. \",IF(AQ6=0,\" \",IF(AQ6>AQ8,\" \",\"Se de mulige arter i oversigten nedenfor.\")))","v":"      Fluen er nu bestemt.  Se ovenfor. "},null,null,null,null,null,null,null,null,null,null,null,null,null,null,null,null,null,null,null,null,null,null,null,null,null,{"$f":"IF(BY6=\" \",0,1)","v":1},{"$f":"IF(BY7=\" \",0,1)","v":0},{"$f":"IF(BY9=\" \",0,1)","v":0},{"$f":"IF(BY10=\" \",0,1)","v":0},{"$f":"IF(BY12=\" \",0,1)","v":0},{"$f":"IF(BY13=\" \",0,1)","v":1},{"$f":"IF(BY14=\" \",0,1)","v":0},{"$f":"IF(BY16=\" \",0,1)","v":0},{"$f":"IF(BY17=\" \",0,1)","v":0},{"$f":"IF(BY19=\" \",0,1)","v":0},{"$f":"IF(BY20=\" \",0,1)","v":0},{"$f":"IF(BY22=\" \",0,1)","v":1},{"$f":"IF(BY23=\" \",0,1)","v":0},{"$f":"IF(BY25=\" \",0,1)","v":0},{"$f":"IF(BY26=\" \",0,1)","v":0},{"$f":"IF(BY28=\" \",0,1)","v":0},{"$f":"IF(BY29=\" \",0,1)","v":0},{"$f":"IF(BY30=\" \",0,1)","v":0},{"$f":"IF(BY31=\" \",0,1)","v":0},null,null,null,null,null,null,null,null,null,null,null,null,null,null,{"$f":"IF(CA7,\"x\",\" \")","v":" "},null,0]
[null,null,null,null,null,null,null,null,null,null,null,null,null,null,null,null,{"$f":"IF(AQ6>AQ8,\"Afkrydsede kendetegn passer ikke med nøglens.\",\" \")","v":" "},null,null,null,null,null,null,null,null,null,null,null,null,null,null,null,null," ",null,null,null,null,null,"Maks.",null,null,{"$f":"MAX(AQ11:AQ23)","v":7},null,null,null,null,null,null,null,null,null,null,null,null,null,null,null,null,null,null,null,null,null,null,null,null,null,null,null,null,null,null,null,null,null," "]
["Længste vingeåre dybt buet nær spidsen ?",null,null,null,null,null,null,null,null,null,null,null,null," ",null,null,{"$f":"IF(AQ6>AQ8,\"Det gør en bestemmelse tvivlsom.    Prøv igen !\",\" \")","v":" "},null,null,null,null,null,null,null,null,null,null,null,null,null,null,null,null,null,null,null,null,null,"Antal Maks.",null,null,null,{"$f":"COUNTIF(AQ11:AQ23,AQ8)","v":1},null,null,null,null,null,null,null,null,null,null,null,null,null,null,null,null,null," ",null,null,null,null,null,null,null,null,null,null,null,null,null,null,null,{"$f":"IF(CA9,\"x\",\" \")","v":" "},null,false]
["Længste vingeåre uden sådan bue ?",null,null,null,null,null,null,null,null,null,null,null,null,null,null,null," Vil du læse om en art, så klik ved dens nummer.",null,null,null,null,null,null,null,null,null,null,null,null,null,null,null,null,null,null,null,null,null,null,null,null,null,"sum","Ho","Hu","Bue","Nej","uT","1T","2T","Øpl","Nej","TvS","Nej","B k","B s","F m","F g","Fml","afl","run","kor","sum",null,null,null,null,null,null,null,null,null,null,null,null,null,{"$f":"IF(CA10,\"x\",\" \")","v":" "},null,0]
[null,null,null,null,null,null,null,null,null,null,null,null,null,null,null,null," ",null,1,{"$f":"IF(AQ11=AQ8,AI11,\" \")","v":" "},null,null,null,null,null,null,null,null,null,null," ",null,null,1,"Arctophila sp.",null,null,null,null,null,null,null,{"$f":"SUM(AR11:BJ11)","v":2},null,{"$f":"IF(BY7=\"x\",5,\" \")","v":" "}," ",{"$f":"IF($BY$10=\"x\",1,\"\")","v":""}," ",{"$f":"IF($BY$13=\"x\",1,\" \")","v":1}," ",null,{"$f":"IF($BY$17=\"x\",1,\" \")","v":" "}," ",{"$f":"IF($BY$20=\"x\",1,\" \")","v":" "},{"$f":"IF($BY$22=\"x\",1,\" \")","v":1}," ",null,{"$f":"IF($BY$26=\"x\",1,\" \")","v":" "},null,null,{"$f":"IF($BY$30=\"x\",1,\" \")","v":" "},null,{"$f":"SUM(AR11:BJ11)","v":2},"    Arctophila sp.",null,null,null,null,null,null,null,null,null,null,null,null," "]
["Vinger uden mørkt tværbånd ?",null,null,null,null,null,null,null,null,null,null,null,null,null,null,null,null,null,2,{"$f":"IF(AQ12=AQ8,AI12,\" \")","v":" "},null,null,null,null,null,null,null,null,null,null,null,null,null,2,"Brachypalpus laphriformis",null,null,null,null,null,null,null,{"$f":"SUM(AR12:BJ12)","v":6},{"$f":"IF(BY6=\"x\",5,\" \")","v":5}," "," ",{"$f":"IF($BY$10=\"x\",1,\"\")","v":""}," ",null,{"$f":"IF($BY$14=\"x\",1,\" \")","v":" "}," ",{"$f":"IF($BY$17=\"x\",1,\" \")","v":" "}," "," ",{"$f":"IF($BY$22=\"x\",1,\" \")","v":1}," ",{"$f":"IF($BY$25=\"x\",1,\" \")","v":" "},{"$f":"IF($BY$26=\"x\",1,\" \")","v":" "},null,null,{"$f":"IF($BY$30=\"x\",1,\" \")","v":" "},null,{"$f":"SUM(AR12:BJ12)","v":6},"Brachypalpus laphriformis",null,null,null,null,null,null,null,null,null,null,null,null,{"$f":"IF(CA12,\"x\",\" \")","v":" "},null,0]
["Vinger med 1 tværbånd eller plet ?",null,null,null,null,null,null,null,null,null,null,null,null,null,null,null,null,null,3,{"$f":"IF(AQ13=AQ8,AI13,\" \")","v":" "},null,null,null,null,null,null,null,null,null,null,null,null,null,3,"Cheilosia illustrata",null,null,null,null,null,null,null,1,null,{"$f":"IF(BY7=\"x\",5,\" \")","v":" "}," ",{"$f":"IF($BY$10=\"x\",1,\"\")","v":""},null,{"$f":"IF($BY$13=\"x\",1,\"\")","v":1}," "," ",{"$f":"IF($BY$17=\"x\",1,\" \")","v":" "}," "," "," ",{"$f":"IF($BY$23=\"x\",1,\" \")","v":" "},{"$f":"IF($BY$25=\"x\",1,\" \")","v":" "},null," ",null,{"$f":"IF($BY$30=\"x\",1,\" \")","v":" "},null,{"$f":"SUM(AR13:BJ13)","v":1},"Cheilosia illustrata",null,null,null,null,null,null,null,null,null,null,null,null,{"$f":"IF(CA13,\"x\",\" \")","v":"x"},null,true]
["Vinger med 2 tværbånd, (1 ved vingespidsen) ?",null,null,null,null,null,null,null,null,null,null,null,null,null,null,null,null,null,4,{"$f":"IF(AQ14=AQ8,AI14,\" \")","v":" "},null,null,null,null,null,null,null,null,null,null,null,null,null,4,"Criorhina sp.",null,null,null,null,null,null,null,6,{"$f":"IF(BY6=\"x\",5,\" \")","v":5},{"$f":"IF(BY7=\"x\",5,\" \")","v":" "}," ",{"$f":"IF($BY$10=\"x\",1,\"\")","v":""},{"$f":"IF($BY$12=\"x\",1,\"\")","v":""},{"$f":"IF($BY$13=\"x\",1,\"\")","v":1},{"$f":"IF($BY$14=\"x\",1,\" \")","v":" "}," ",{"$f":"IF($BY$17=\"x\",1,\" \")","v":" "}," "," "," ",{"$f":"IF($BY$23=\"x\",1,\" \")","v":" "},{"$f":"IF($BY$25=\"x\",1,\" \")","v":" "},{"$f":"IF($BY$26=\"x\",1,\" \")","v":" "}," ",null,null,{"$f":"IF($BY$31=\"x\",1,\" \")","v":" "},{"$f":"SUM(AR14:BJ14)","v":6},"     Criorhina sp.",null,null,null,null,null,null,null,null,null,null,null,null,{"$f":"IF(CA14,\"x\",\" \")","v":" "},null,false]
[null,null,null,null,null,null,null,null,null,null,null,null,null,null,null,null,null,null,5,{"$f":"IF(AQ15=AQ8,AI15, \" \")","v":" "},null,null,null,null,null,null,null,null,null,null,null,null,null,5,"Eriozona syrphoides",null,null,null,null,null,null,null,1,null,{"$f":"IF(BY7=\"x\",5,\" \")","v":" "}," ",{"$f":"IF($BY$10=\"x\",1,\"\")","v":""},null,{"$f":"IF($BY$13=\"x\",1,\"\")","v":1}," "," ",{"$f":"IF($BY$17=\"x\",1,\" \")","v":" "}," "," "," ",{"$f":"IF($BY$23=\"x\",1,\" \")","v":" "}," ",{"$f":"IF($BY$26=\"x\",1,\" \")","v":" "}," ",{"$f":"IF($BY$29=\"x\",1,\" \")","v":" "},null,null,{"$f":"SUM(AR15:BJ15)","v":1},"Eriozona syrphoides",null,null,null,null,null,null,null,null,null,null,null,null," "]
["Øjne tydeligt plettede ?",null,null,null,null,null,null,null,null,null,null,null,null,null,null,null,null,null,6,{"$f":"IF(AQ16=AQ8,AI16,\" \")","v":" "},null,null,null,null,null,null,null,null,null,null,null,null,null,6,"Eristalinus sp.",null,null,null,null,null,null,null,5,{"$f":"IF(BY6=\"x\",5,\" \")","v":5}," ",{"$f":"IF(BY9=\"x\",1,\"\")","v":""},null,{"$f":"IF($BY$12=\"x\",1,\"\")","v":""}," "," ",{"$f":"IF(BY16=\"x\",1,\" \")","v":" "},null," "," "," ",{"$f":"IF($BY$23=\"x\",1,\" \")","v":" "},{"$f":"IF($BY$25=\"x\",1,\" \")","v":" "},{"$f":"IF($BY$26=\"x\",1,\" \")","v":" "}," ",null,{"$f":"IF($BY$30=\"x\",1,\" \")","v":" "},null,5,"    Eristalinus sp.",null,null,null,null,null,null,null,null,null,null,null,null,{"$f":"IF(CA16,\"x\",\" \")","v":" "},null,0]
["Øjnene ikke plettede ?",null,null,null,null,null,null,null,null,null,null,null,null,null,null,null,null,null,7,{"$f":"IF(AQ17=AQ8,AI17,\" \")","v":" "},null,null,null,null,null,null,null,null,null,null,null,null,null,7,"Eristalis sp.",null,null,null,null,null,null,null,6,{"$f":"IF(BY6=\"x\",5,\" \")","v":5},{"$f":"IF(BY7=\"x\",5,\" \")","v":" "},{"$f":"IF(BY9=\"x\",1,\"\")","v":""},null,{"$f":"IF($BY$12=\"x\",1,\"\")","v":""},{"$f":"IF($BY$13=\"x\",1,\"\")","v":1}," "," ",{"$f":"IF($BY$17=\"x\",1,\" \")","v":" "}," "," "," ",{"$f":"IF($BY$23=\"x\",1,\" \")","v":" "}," ",null," ",null,{"$f":"IF($BY$30=\"x\",1,\" \")","v":" "},null,6,"      Eristalis sp.",null,null,null,null,null,null,null,null,null,null,null,null,{"$f":"IF(CA17,\"x\",\" \")","v":" "},null,0]
[null,null,null,null,null,null,null,null,null,null,null,null,null,null,null,null,null,null,8,{"$f":"IF(AQ18=AQ8,AI18,\" \")","v":"Mallota cimbiciformis"},null,null,null,null,null,null,null,null,null,null,null,null,null,8,"Mallota cimbiciformis",null,null,null,null,null,null,null,7,{"$f":"IF(BY6=\"x\",5,\" \")","v":5},null,{"$f":"IF(BY9=\"x\",1,\"\")","v":""}," ",null,{"$f":"IF($BY$13=\"x\",1,\"\")","v":1}," "," "," "," "," ",{"$f":"IF($BY$22=\"x\",1,\" \")","v":1}," "," ",null," ",null,{"$f":"IF($BY$30=\"x\",1,\" \")","v":" "},{"$f":"IF($BY$31=\"x\",1,\" \")","v":" "},7,"Mallota cimbiciformis",null,null,null,null,null,null,null,null,null,null,null,null," "]
["Brystet med grå tværstriber ?",null,null,null,null,null,null,null,null,null,null,null,null,null,null,null,null,null,9,{"$f":"IF(AQ19=AQ8,AI19,\" \")","v":" "},null,null,null,null,null,null,null,null,null,null,null,null,null,9,"Merodon equestris",null,null,null,null,null,null,null,1,null,{"$f":"IF(BY7=\"x\",5,\" \")","v":" "},{"$f":"IF(BY9=\"x\",1,\"\")","v":""}," ",{"$f":"IF($BY$12=\"x\",1,\"\")","v":""}," "," "," "," "," "," ",{"$f":"IF($BY$22=\"x\",1,\" \")","v":1}," "," ",null," ",{"$f":"IF($BY$29=\"x\",1,\" \")","v":" "},null,null,1," Merodon equestris",null,null,null,null,null,null,null,null,null,null,null,null,{"$f":"IF(CA19,\"x\",\" \")","v":" "},null,0]
["Brystet uden tværstriber; måske  på langs ? ",null,null,null,null,null,null,null,null,null,null,null,null,null,null,null,null,null,10,{"$f":"IF(AQ20=AQ8,AI20,\" \")","v":" "},null,null,null,null,null,null,null,null,null,null,null,null,null,10,"Microdon sp.",null,null,null,null,null,null,null,5,{"$f":"IF(BY6=\"x\",5,\" \")","v":5},null,null,{"$f":"IF(BY10=\"x\",1,\"\")","v":""},{"$f":"IF($BY$12=\"x\",1,\"\")","v":""}," "," "," "," "," "," "," ",{"$f":"IF($BY$23=\"x\",1,\" \")","v":" "}," ",null,{"$f":"IF(BY28=\"x\",1,\" \")","v":" "},null,null,null,5,"      Microdon sp.",null,null,null,null,null,null,null,null,null,null,null,null,{"$f":"IF(CA20,\"x\",\" \")","v":" "},null,0]
[null,null,null,null,null,null,null,null,null,null,null,null,null,null,null,null,null,null,11,{"$f":"IF(AQ21=AQ8,AI21,\" \")","v":" "},null,null,null,null,null,null,null,null,null,null,null,null,null,11,"Myathropa florea",null,null,null,null,null,null,null,{"$f":"SUM(AR21:BJ21)","v":5},{"$f":"IF(BY6=\"x\",5,\" \")","v":5},null,{"$f":"IF(BY9=\"x\",1,\"\")","v":""}," ",{"$f":"IF($BY$12=\"x\",1,\"\")","v":""}," "," "," "," ",{"$f":"IF(BY19=\"x\",1,\" \")","v":" "}," "," ",{"$f":"IF($BY$23=\"x\",1,\" \")","v":" "}," ",null," ",null,{"$f":"IF($BY$30=\"x\",1,\" \")","v":" "},null,5,"     Myathropa florea",null,null,null,null,null,null,null,null,null,null,null,null," "]
["Baglår kraftige, fortykkede ?",null,null,null,null,null,null,null,null,null,null,null,null,null,null,null,null,null,12,{"$f":"IF(AQ22=AQ8,AI22,\" \")","v":" "},null,null,null,null,null,null,null,null,null,null,null,null,null,12,"Pocota personata",null,null,null,null,null,null,null,{"$f":"SUM(AR22:BJ22)","v":1},null,{"$f":"IF(BY7=\"x\",5,\" \")","v":" "}," ",{"$f":"IF(BY10=\"x\",1,\"\")","v":""},null,{"$f":"IF($BY$13=\"x\",1,\"\")","v":1}," "," "," "," ",{"$f":"IF($BY$20=\"x\",1,\" \")","v":" "}," ",{"$f":"IF($BY$23=\"x\",1,\" \")","v":" "}," ",{"$f":"IF(BY29=\"x\",1,\" \")","v":" "}," ",null,null,{"$f":"IF($BY$31=\"x\",1,\" \")","v":" "},1,"   Pocota personata",null,null,null,null,null,null,null,null,null,null,null,null,{"$f":"IF(CA22,\"x\",\" \")","v":"x"},null,true]
["Baglår ikke kraftige, fortykkede ?",null,null,null,null,null,null,null,null,null,null,null,null,null,null,null,null,null,13,{"$f":"IF(AQ23=AQ8,AI23,\" \")","v":" "},null,null,null,null,null,null,null,null,null,null,null,null,null,13,"Volucella bombylans",null,null,null,null,null,null,null,{"$f":"SUM(AR23:BJ23)","v":1},null,{"$f":"IF(BY7=\"x\",5,\" \")","v":" "},null,{"$f":"IF(BY10=\"x\",1,\"\")","v":""},null,{"$f":"IF($BY$13=\"x\",1,\"\")","v":1},{"$f":"IF($BY$14=\"x\",1,\" \")","v":" "}," "," "," ",{"$f":"IF($BY$20=\"x\",1,\" \")","v":" "}," ",{"$f":"IF($BY$23=\"x\",1,\" \")","v":" "}," ",null,null,{"$f":"IF($BY$29=\"x\",1,\" \")","v":" "},null,null,1,"Volucella bombylans",null,null,null,null,null,null,null,null,null,null,null,null,{"$f":"IF(CA23,\"x\",\" \")","v":" "},null,0]
[null,null,null,null,null,null,null,null,null,null,null,null,null," ",null,null,{"$f":"+CA34","v":8},{"$f":"VLOOKUP(Q24,AH11:AI23,2)","v":"Mallota cimbiciformis"},null,null,null,null,null,null,null,null,null,null,null,null,null,null,null,null,null,null,null,null,null,null,null,null,null,null,null,null,null,null,null,null,null,null,null,null,null,null,null,null,null,null,null,null,null,null,null,null,null,null,null,null,null,null,null,null,null,null," "]
["Følehorn mørke ?",null,null,null,null,null,null,null,null,null,null,null,null,null,null,null,{"$f":"VLOOKUP(Q24,AH26:AI38,2)","v":"Stor flue, 13-17 mm. Brystet gulligt behåret. Bagkrop-"},null,null,null,null,null,null,null,null,null,null,null,null,null,null,null,null,null,null,null,null,null,null,null,null,null,null,null,null,null,null,null,null,null,null,null,null,null,null,null,null,null,null,null,null,null,null,null,null,null,null,null,null,null,null,null,null,null,null,null,{"$f":"IF(CA25,\"x\",\" \")","v":" "},null,0]
["Følehorn gule eller brungule ?",null,null,null,null,null,null,null,null,null,null,null,null,null,null,null,{"$f":"VLOOKUP(Q24,AH40:AI52,2)","v":"pen mørk. Bagskinnebenene kraftigt fortykkede, især"},null,null,null,null,null,null,null,null,null,null,null,null,null,null,null,1,1,"To arter. Arctophila bombiformis: Stor. Bryst fortil gul-",null,null,null,null,null,null,null,null,null,null,null,null,null,null,null,null,null,{"$f":"SUM(AR11:BJ11)","v":2},"    Bjørnesvirreflue",null,null,null,null,null,null,null,null,null,null,null,null,null,null,null,null,null,null,null,null,null,null,{"$f":"IF(CA26,\"x\",\" \")","v":" "},null,0]
[null,null,null,null,null,null,null,null,null,null,null,null,null,null,null,null,{"$f":"VLOOKUP(Q24,AH54:AI66,2)","v":"hos hannen. Vingerne har 1 mørkt tværbånd og dyb bue"},null,null,null,null,null,null,null,null,null,null,null,null,null,null,null,null,2,"Aflang slank art. Brystet brunsort. Bagkroppens basis",null,null,null,null,null,null,null,null,null,null,null,null,null,null,null,null,null,6," Brun Træsmuldsvirreflue",null,null,null,null,null,null,null,null,null,null,null,null,null,null,null,null,null,null,null,null,null,null," "]
["Følehorn meget længere end hovedet ?",null,null,null,null,null,null,null,null,null,null,null,null," ",null,null,{"$f":"VLOOKUP(Q24,AH68:AI80,2)","v":"på vingeåre nær spidsen. En meget sjælden art, fundet"},null,null,null,null,null,null,null,null,null,null,null,null,null,null,null,null,3," Eneste humlebi-lignende Cheilosia. Brystet sort. Bag-",null,null,null,null,null,null,null,null,null,null,null,null,null,null,null,null,null,1,"Broget Urtesvirreflue",null,null,null,null,null,null,null,null,null,null,null,null,null,null,null,null,null,null,null,null,null,null,{"$f":"IF(CA28,\"x\",\" \")","v":" "},null,0]
["3. følehornsled aflangt, evt afsmalnet udefter ?",null,null,null,null,null,null,null,null,null,null,null,null,null,null,null,{"$f":"VLOOKUP(Q24,AH82:AI94,2)","v":"nogle få steder i de østlige egne, isæri Nordsjælland."},null,null,null,null,null,null,null,null,null,null,null,null,null,null,null,null,4,"Ansigtet gult, svagt indadbuet og forlænget nedefter.",null,null,null,null,null,null,null,null,null,null,null,null,null,null,null,null,null,6,"      Pels-Svirreflue",null,null,null,null,null,null,null,null,null,null,null,null,null,null,null,null,null,null,null,null,null,null,{"$f":"IF(CA29,\"x\",\" \")","v":" "},null,0]
["3. følehornsled nogenlunde rundt ?",null,null,null,null,null,null,null,null,null,null,null,null,null,null,null,{"$f":"VLOOKUP(Q24,AH96:AI108,2)","v":0},null,null,null,null,null,null,null,null,null,null,null,null,null,null,null,null,5,"De meget lyse ben, hvor fødderne er gule og for- og",null,null,null,null,null,null,null,null,null,null,null,null,null,null,null,null,null,1,"     Bjerg-Svirreflue",null,null,null,null,null,null,null,null,null,null,null,null,null,null,null,null,null,null,null,null,null,null,{"$f":"IF(CA30,\"x\",\" \")","v":" "},null,0]
["3. følehornsled kortere end bredt ?",null,null,null,null,null,null,null,null,null,null,null,null,null,null,null,{"$f":"VLOOKUP(Q24,AH110:AI122,2)","v":0},null,null,null,null,null,null,null,null,null,null,null,null,null,null,null,null,6,"To mørke arter med plettede øjne. Vingerne er klare,",null,null,null,null,null,null,null,null,null,null,null,null,null,null,null,null,null,5,"        Dyndflue",null,null,null,null,null,null,null,null,null,null,null,null,null,null,null,null,null,null,null,null,null,null,{"$f":"IF(CA31,\"x\",\" \")","v":" "},null,0]
[null,null,null,null,null,null,null,null,null,null,null,null,null,null," ",null,null,null,"Bi-lignende svirrefluer Version 2. Bent Haagen Petersen",null,null,null,null,null,null,null,null,null,null,null,null,null,null,7,"14 danske arter, hvoraf flere ligner hinanden. Vingeåre",null,null,null,null,null,null,null,null,null,null,null,null,null,null,null,null,null,6,"         Dyndflue"]
[null,null,null,null,null,null,null,null,null,null,null,null,null,null,null,null,null,null,null,null,null,null,null,null,null,null,null,null,null,null,null,null,null,8,"Stor flue, 13-17 mm. Brystet gulligt behåret. Bagkrop-",null,null,null,null,null,null,null,null,null,null,null,null,null,null,null,null,null,7,"       Uld-Svirreflue"]
[null,null,null,null,null,null,null,null,null,null,null,null,null,null,null,null,null,null,null,null,null,null,null,null,null,null,null,null,null,null,null,null,null,9,"De klare vinger uden  vingebånd adskiller straks M.",null,null,null,null,null,null,null,null,null,null,null,null,null,null,null,null,null,1,"     Stor Narcisflue",null,null,null,null,null,null,null,null,null,null,null,null,null,null,null,null,null,null,null,null,null,null,null,null,8]
[null,null,null,null,null,null,null,null,null,null,null,null,null,null,null,null,null,null,null,null,null,null,null,null,null,null,null,null,null,null,null,null,null,10,"Ret små gråsorte arter, der er let kendelige på følehor-",null,null,null,null,null,null,null,null,null,null,null,null,null,null,null,null,null,5,"     Myresvirreflue"]
[null,null,null,null,null,null,null,null,null,null,null,null,null,null,null,null,null,null,null,null,null,null,null,null,null,null,null,null,null,null,null,null,null,11,"Let kendelig på brystets grå tværstriber, der danner en",null,null,null,null,null,null,null,null,null,null,null,null,null,null,null,null,null,5,"Dødningehoved-Svirreflue"]
[null,null,null,null,null,null,null,null,null,null,null,null,null,null,null,null,null,null,null,null,null,null,null,null,null,null,null,null,null,null,null,null,null,12,"Karakteristisk for denne art er dens lille hoved. Krop-",null,null,null,null,null,null,null,null,null,null,null,null,null,null,null,null,null,1,"   Jordhumle-Svirreflue"]
[null,null,null,null,null,null,null,null,null,null,null,null,null,null,null,null,null,null,null,null,null,null,null,null,null,null,null,null,null,null,null,null,null,13,"3. Følehornsled aflangt med følehornsbørsten meget",null,null,null,null,null,null,null,null,null,null,null,null,null,null,null,null,null,1,"Foranderlig Humlesvirreflue"]
[null,null,null,null,null,null,null,null,null,null,null,null,null,null,null,null,null,null,null,null,null,null,null,null,null,null,null,null,null,null,null,null,null,null,null,null,null,null,null,null,null,null,null,null,null,null,null,null,null,null,null,null," "]
[null,null,null,null,null,null,null,null,null,null,null,null,null,null,null,null,null,null,null,null,null,null,null,null,null,null,null,null,null,null,null,null,2,1,"ligt, bagtil sort. Bagkrop inderst inde smalt gul, derefter"]
[null,null,null,null,null,null,null,null,null,null,null,null,null,null,null,null,null,null,null,null,null,null,null,null,null,null,null,null,null,null,null,null,null,2,"rødgul. Ingen bue på vingeåre ved spidsen. Vingerne"]
[null,null,null,null,null,null,null,null,null,null,null,null,null,null,null,null,null,null,null,null,null,null,null,null,null,null,null,null,null,null,null,null,null,3,"kroppen indest med grå/gul behåring, 3. Bagkropsled"]
[null,null,null,null,null,null,null,null,null,null,null,null,null,null,null,null,null,null,null,null,null,null,null,null,null,null,null,null,null,null,null,null,null,4,"Følehorn meget korte, højere end lange. 3 arter med"]
[null,null,null,null,null,null,null,null,null,null,null,null,null,null,null,null,null,null,null,null,null,null,null,null,null,null,null,null,null,null,null,null,null,5,"midtskinnebenene er gule, kendetegner E. syrphoides. "]
[null,null,null,null,null,null,null,null,null,null,null,null,null,null,null,null,null,null,null,null,null,null,null,null,null,null,null,null,null,null,null,null,null,6,"uden mørkt tværbånd. Den lille E. sepulchralis har grå"]
[null,null,null,null,null,null,null,null,null,null,null,null,null,null,null,null,null,null,null,null,null,null,null,null,null,null,null,null,null,null,null,null,null,7,"har nær vingespidsen en dyb bue. Vingerne uden eller"]
[null,null,null,null,null,null,null,null,null,null,null,null,null,null,null,null,null,null,null,null,null,null,null,null,null,null,null,null,null,null,null,null,null,8,"pen mørk. Bagskinnebenene kraftigt fortykkede, især"]
[null,null,null,null,null,null,null,null,null,null,null,null,null,null,null,null,null,null,null,null,null,null,null,null,null,null,null,null,null,null,null,null,null,9,"equestris fra Volucella bombylabns. Vingerne er i hvile-"]
[null,null,null,null,null,null,null,null,null,null,null,null,null,null,null,null,null,null,null,null,null,null,null,null,null,null,null,null,null,null,null,null,null,10,"nene, som er ca. dobbelt så lange som hovedet set "]
[null,null,null,null,null,null,null,null,null,null,null,null,null,null,null,null,null,null,null,null,null,null,null,null,null,null,null,null,null,null,null,null,null,11,"dødningehoved-lignende tegning. Bagkroppen har sto- "]
[null,null,null,null,null,null,null,null,null,null,null,null,null,null,null,null,null,null,null,null,null,null,null,null,null,null,null,null,null,null,null,null,null,12,"pens behåring er altid farvet som Jordhumlens. Brystet"]
[null,null,null,null,null,null,null,null,null,null,null,null,null,null,null,null,null,null,null,null,null,null,null,null,null,null,null,null,null,null,null,null,null,13,"langt behåret. Vingerne har et tydeligt mørkt bånd"]
[]
[null,null,null,null,null,null,null,null,null,null,null,null,null,null,null,null,null,null,null,null,null,null,null,null,null,null,null,null,null,null,null,null,3,1,"hvid, midt på bredt sort, og bagtil hvid. Sjælden."]
[null,null,null,null,null,null,null,null,null,null,null,null,null,null,null,null,null,null,null,null,null,null,null,null,null,null,null,null,null,null,null,null,null,2,"har to tværbånd, svagste ved vingespidsen.  Baglårene"]
[null,null,null,null,null,null,null,null,null,null,null,null,null,null,null,null,null,null,null,null,null,null,null,null,null,null,null,null,null,null,null,null,null,3,"med sort tværbånd. Bagkrpsspidsen orange. Vingerne"]
[null,null,null,null,null,null,null,null,null,null,null,null,null,null,null,null,null,null,null,null,null,null,null,null,null,null,null,null,null,null,null,null,null,4,"mørke tværbånd på vingerne; de yderste ikke tydelige. "]
[null,null,null,null,null,null,null,null,null,null,null,null,null,null,null,null,null,null,null,null,null,null,null,null,null,null,null,null,null,null,null,null,null,5,"Ansigtet er gult. Vingepletten er gulbrun, men den er "]
[null,null,null,null,null,null,null,null,null,null,null,null,null,null,null,null,null,null,null,null,null,null,null,null,null,null,null,null,null,null,null,null,null,6,"længdestriber på brystet. Bagkroppen er meget kort og "]
[null,null,null,null,null,null,null,null,null,null,null,null,null,null,null,null,null,null,null,null,null,null,null,null,null,null,null,null,null,null,null,null,null,7,"med kun 1 mørkt vingebånd. Benene er både sorte og"]
[null,null,null,null,null,null,null,null,null,null,null,null,null,null,null,null,null,null,null,null,null,null,null,null,null,null,null,null,null,null,null,null,null,8,"hos hannen. Vingerne har 1 mørkt tværbånd og dyb bue"]
[null,null,null,null,null,null,null,null,null,null,null,null,null,null,null,null,null,null,null,null,null,null,null,null,null,null,null,null,null,null,null,null,null,9,"tilstand lagt parallelt hen over bagkroppen. Flere farve-"]
[null,null,null,null,null,null,null,null,null,null,null,null,null,null,null,null,null,null,null,null,null,null,null,null,null,null,null,null,null,null,null,null,null,10,"fra oven.  Ved vingespidsen er randårerne buede på en"]
[null,null,null,null,null,null,null,null,null,null,null,null,null,null,null,null,null,null,null,null,null,null,null,null,null,null,null,null,null,null,null,null,null,11,"re gullige pletter. Vingerne har en dyb bue på vingeåre"]
[null,null,null,null,null,null,null,null,null,null,null,null,null,null,null,null,null,null,null,null,null,null,null,null,null,null,null,null,null,null,null,null,null,12,"fortil gult, bagtil sort. Bagkroppen sort med gult tvær-"]
[null,null,null,null,null,null,null,null,null,null,null,null,null,null,null,null,null,null,null,null,null,null,null,null,null,null,null,null,null,null,null,null,null,13,"midt på og et svagere ved vingespidsen. Kroppen"]
[]
[null,null,null,null,null,null,null,null,null,null,null,null,null,null,null,null,null,null,null,null,null,null,null,null,null,null,null,null,null,null,null,null,4,1,"Arctophila superbiens: Brystet orangefarvet behåret, "]
[null,null,null,null,null,null,null,null,null,null,null,null,null,null,null,null,null,null,null,null,null,null,null,null,null,null,null,null,null,null,null,null,null,2,"kraftigt fortykkede, især hos hannen. Arten er sjælden."]
[null,null,null,null,null,null,null,null,null,null,null,null,null,null,null,null,null,null,null,null,null,null,null,null,null,null,null,null,null,null,null,null,null,3,"gullige med stor brungul plet på midten. Vinger uden"]
[null,null,null,null,null,null,null,null,null,null,null,null,null,null,null,null,null,null,null,null,null,null,null,null,null,null,null,null,null,null,null,null,null,4,"C.  Berberina ligner humlebi, C. asilica og C. floccosa"]
[null,null,null,null,null,null,null,null,null,null,null,null,null,null,null,null,null,null,null,null,null,null,null,null,null,null,null,null,null,null,null,null,null,5,"ikke altid tydelig. Brystet sort med gule skuldre. Hvid-"]
[null,null,null,null,null,null,null,null,null,null,null,null,null,null,null,null,null,null,null,null,null,null,null,null,null,null,null,null,null,null,null,null,null,6,"tilspidset  E. aeneus kan have utydelige striber på bry-"]
[null,null,null,null,null,null,null,null,null,null,null,null,null,null,null,null,null,null,null,null,null,null,null,null,null,null,null,null,null,null,null,null,null,7,"gule. Bagkroppen med eller uden gule pletter. Flere"]
[null,null,null,null,null,null,null,null,null,null,null,null,null,null,null,null,null,null,null,null,null,null,null,null,null,null,null,null,null,null,null,null,null,8,"på vingeåre nær spidsen. En meget sjælden art, fundet"]
[null,null,null,null,null,null,null,null,null,null,null,null,null,null,null,null,null,null,null,null,null,null,null,null,null,null,null,null,null,null,null,null,null,9,"varianter med overgangsformer forekommer. Baglåre- "]
[null,null,null,null,null,null,null,null,null,null,null,null,null,null,null,null,null,null,null,null,null,null,null,null,null,null,null,null,null,null,null,null,null,10,"karakteristisk måde.  Især bagkroppen har grålige teg-"]
[null,null,null,null,null,null,null,null,null,null,null,null,null,null,null,null,null,null,null,null,null,null,null,null,null,null,null,null,null,null,null,null,null,11,"nær spidsen. Vingerne er klare uden mørke tværbånd."]
[null,null,null,null,null,null,null,null,null,null,null,null,null,null,null,null,null,null,null,null,null,null,null,null,null,null,null,null,null,null,null,null,null,12,"bånd. Bagspidsen hvid. Vingerne med 1 mørkt tvær-"]
[null,null,null,null,null,null,null,null,null,null,null,null,null,null,null,null,null,null,null,null,null,null,null,null,null,null,null,null,null,null,null,null,null,13,"er tæt behåret. Flere forskellige farvevarianter fore-"]
[]
[null,null,null,null,null,null,null,null,null,null,null,null,null,null,null,null,null,null,null,null,null,null,null,null,null,null,null,null,null,null,null,null,5,1,"bagkroppen mest hvidligt behåret.  Ben helt sorte."]
[null,null,null,null,null,null,null,null,null,null,null,null,null,null,null,null,null,null,null,null,null,null,null,null,null,null,null,null,null,null,null,null,null,2]
[null,null,null,null,null,null,null,null,null,null,null,null,null,null,null,null,null,null,null,null,null,null,null,null,null,null,null,null,null,null,null,null,null,3,"bue ved  spidsen. Sjælden."]
[null,null,null,null,null,null,null,null,null,null,null,null,null,null,null,null,null,null,null,null,null,null,null,null,null,null,null,null,null,null,null,null,null,4,"honningbier. Begge har lyse hår ved bagkropsbasis."]
[null,null,null,null,null,null,null,null,null,null,null,null,null,null,null,null,null,null,null,null,null,null,null,null,null,null,null,null,null,null,null,null,null,5,"ligt bagtil. Bagkroppen er sort med orange spids."]
[null,null,null,null,null,null,null,null,null,null,null,null,null,null,null,null,null,null,null,null,null,null,null,null,null,null,null,null,null,null,null,null,null,6,"stet.  Dens bagkrop er aflang med parallelle sider. Beg-"]
[null,null,null,null,null,null,null,null,null,null,null,null,null,null,null,null,null,null,null,null,null,null,null,null,null,null,null,null,null,null,null,null,null,7,"arter er almindelige. Der henvises til særlig digital nøg-"]
[null,null,null,null,null,null,null,null,null,null,null,null,null,null,null,null,null,null,null,null,null,null,null,null,null,null,null,null,null,null,null,null,null,8,"nogle få steder i de østlige egne, isæri Nordsjælland."]
[null,null,null,null,null,null,null,null,null,null,null,null,null,null,null,null,null,null,null,null,null,null,null,null,null,null,null,null,null,null,null,null,null,9,"ne er kraftige og har på undersiden en tydelig tand  ved "]
[null,null,null,null,null,null,null,null,null,null,null,null,null,null,null,null,null,null,null,null,null,null,null,null,null,null,null,null,null,null,null,null,null,10,"ninger. Arterne er sjældne."]
[null,null,null,null,null,null,null,null,null,null,null,null,null,null,null,null,null,null,null,null,null,null,null,null,null,null,null,null,null,null,null,null,null,11,"En almindelig art."]
[null,null,null,null,null,null,null,null,null,null,null,null,null,null,null,null,null,null,null,null,null,null,null,null,null,null,null,null,null,null,null,null,null,12,"bånd. Meget sjælden. Kun fundet i de østlgste egne."]
[null,null,null,null,null,null,null,null,null,null,null,null,null,null,null,null,null,null,null,null,null,null,null,null,null,null,null,null,null,null,null,null,null,13,"kommer. Ansigtet gult. Almindelig."]
[]
[null,null,null,null,null,null,null,null,null,null,null,null,null,null,null,null,null,null,null,null,null,null,null,null,null,null,null,null,null,null,null,null,6,1,"Ikke almindelig."]
[null,null,null,null,null,null,null,null,null,null,null,null,null,null,null,null,null,null,null,null,null,null,null,null,null,null,null,null,null,null,null,null,null,2]
[null,null,null,null,null,null,null,null,null,null,null,null,null,null,null,null,null,null,null,null,null,null,null,null,null,null,null,null,null,null,null,null,null,3]
[null,null,null,null,null,null,null,null,null,null,null,null,null,null,null,null,null,null,null,null,null,null,null,null,null,null,null,null,null,null,null,null,null,4,"C. ascilca har grå tværstriber på den mørke bagkrop."]
[null,null,null,null,null,null,null,null,null,null,null,null,null,null,null,null,null,null,null,null,null,null,null,null,null,null,null,null,null,null,null,null,null,5,"Sjælden."]
[null,null,null,null,null,null,null,null,null,null,null,null,null,null,null,null,null,null,null,null,null,null,null,null,null,null,null,null,null,null,null,null,null,6,"ge arter har dybe bue på længste vingeåre ved spidsen."]
[null,null,null,null,null,null,null,null,null,null,null,null,null,null,null,null,null,null,null,null,null,null,null,null,null,null,null,null,null,null,null,null,null,7,"le til bestemmelse af arterne i slægten."]
[null,null,null,null,null,null,null,null,null,null,null,null,null,null,null,null,null,null,null,null,null,null,null,null,null,null,null,null,null,null,null,null,null,8]
[null,null,null,null,null,null,null,null,null,null,null,null,null,null,null,null,null,null,null,null,null,null,null,null,null,null,null,null,null,null,null,null,null,9,"spidsen. Benene er helt sorte. Almindelig og kendt"]
[null,null,null,null,null,null,null,null,null,null,null,null,null,null,null,null,null,null,null,null,null,null,null,null,null,null,null,null,null,null,null,null,null,10]
[null,null,null,null,null,null,null,null,null,null,null,null,null,null,null,null,null,null,null,null,null,null,null,null,null,null,null,null,null,null,null,null,null,11]
[null,null,null,null,null,null,null,null,null,null,null,null,null,null,null,null,null,null,null,null,null,null,null,null,null,null,null,null,null,null,null,null,null,12]
[null,null,null,null,null,null,null,null,null,null,null,null,null,null,null,null,null,null,null,null,null,null,null,null,null,null,null,null,null,null,null,null,null,13]
[]
[null,null,null,null,null,null,null,null,null,null,null,null,null,null,null,null,null,null,null,null,null,null,null,null,null,null,null,null,null,null,null,null,7,1]
[null,null,null,null,null,null,null,null,null,null,null,null,null,null,null,null,null,null,null,null,null,null,null,null,null,null,null,null,null,null,null,null,null,2]
[null,null,null,null,null,null,null,null,null,null,null,null,null,null,null,null,null,null,null,null,null,null,null,null,null,null,null,null,null,null,null,null,null,3]
[null,null,null,null,null,null,null,null,null,null,null,null,null,null,null,null,null,null,null,null,null,null,null,null,null,null,null,null,null,null,null,null,null,4,"Alle tre arter er sjældne, C. floccosa især."]
[null,null,null,null,null,null,null,null,null,null,null,null,null,null,null,null,null,null,null,null,null,null,null,null,null,null,null,null,null,null,null,null,null,5]
[null,null,null,null,null,null,null,null,null,null,null,null,null,null,null,null,null,null,null,null,null,null,null,null,null,null,null,null,null,null,null,null,null,6,"Ret almindelige."]
[null,null,null,null,null,null,null,null,null,null,null,null,null,null,null,null,null,null,null,null,null,null,null,null,null,null,null,null,null,null,null,null,null,7]
[null,null,null,null,null,null,null,null,null,null,null,null,null,null,null,null,null,null,null,null,null,null,null,null,null,null,null,null,null,null,null,null,null,8]
[null,null,null,null,null,null,null,null,null,null,null,null,null,null,null,null,null,null,null,null,null,null,null,null,null,null,null,null,null,null,null,null,null,9,"for hannens støjende svirren."]
[null,null,null,null,null,null,null,null,null,null,null,null,null,null,null,null,null,null,null,null,null,null,null,null,null,null,null,null,null,null,null,null,null,10]
[null,null,null,null,null,null,null,null,null,null,null,null,null,null,null,null,null,null,null,null,null,null,null,null,null,null,null,null,null,null,null,null,null,11]
[null,null,null,null,null,null,null,null,null,null,null,null,null,null,null,null,null,null,null,null,null,null,null,null,null,null,null,null,null,null,null,null,null,12]
[null,null,null,null,null,null,null,null,null,null,null,null,null,null,null,null,null,null,null,null,null,null,null,null,null,null,null,null,null,null,null,null,null,13]

{"sheet":"Ark2","index":1,"n_rows":0,"n_cols":0,"rows_kept":0,"cut":false,"hidden":false,"merged":[]}

{"sheet":"Ark3","index":2,"n_rows":0,"n_cols":0,"rows_kept":0,"cut":false,"hidden":false,"merged":[]}

{"sheet":"Ark4","index":3,"n_rows":0,"n_cols":0,"rows_kept":0,"cut":false,"hidden":false,"merged":[]}

{"sheet":"Ark5","index":4,"n_rows":0,"n_cols":0,"rows_kept":0,"cut":false,"hidden":false,"merged":[]}

{"sheet":"Ark6","index":5,"n_rows":0,"n_cols":0,"rows_kept":0,"cut":false,"hidden":false,"merged":[]}